fUSD/lending_fUSD_20260627
["ID","MTS","AMOUNT","RATE_DAILY","PERIOD"]
[426534478,1782557438000,-10495.06341151,0.00017351,2]
[426534475,1782557438000,-160.0,0.00016635,2]
[426534470,1782557438000,-1167.05155577,0.00016024,2]
[426534477,1782557438000,-1246.58,0.00016931,2]
[426534480,1782557438000,-204.64519409,0.000178,3]
[426534479,1782557438000,-1208.03,0.00017424,2]
[426534468,1782557438000,-150.09,0.00015594,2]
[426534467,1782557438000,-167.93,0.00015594,2]
[426534464,1782557438000,-217.10017775,0.00014999,2]
[426534461,1782557438000,-10495.06341151,0.00014998,2]
[426534465,1782557438000,-261101.11002723,0.00015,2]
[426534471,1782557438000,-822.0,0.00016208,2]
[426534544,1782557439000,-177.23,0.00024658,2]
[426534550,1782557439000,-151.0,0.00025063,3]
[426534548,1782557439000,-156.68923007,0.00024931,2]
[426534541,1782557439000,-6100.998,0.00024289,2]
[426534542,1782557439000,-217.892,0.00024289,2]
[426534536,1782557439000,-204.6451941,0.00024164,4]
[426534551,1782557439000,-151.0,0.00025063,3]
[426534543,1782557439000,-10495.06341151,0.00024409,2]
[426534540,1782557439000,-3575.441,0.00024289,2]
[426534531,1782557439000,-189.94,0.000224,7]
[426534545,1782557439000,-181.87,0.00024658,2]
[426534539,1782557439000,-152.372506,0.00024289,2]
[426534549,1782557439000,-158000.0,0.00025,2]
[426534564,1782557439000,-10495.06341151,0.00026762,2]
[426534547,1782557439000,-182.77,0.00024658,2]
[426534554,1782557439000,-151.0,0.00025063,3]
[426534552,1782557439000,-151.0,0.00025063,3]
[426534557,1782557439000,-189.94,0.000257,7]
[426534555,1782557439000,-151.0,0.00025063,3]
[426534553,1782557439000,-151.0,0.00025063,3]
[426534560,1782557439000,-2191.1299017,0.00026013,2]
[426534561,1782557439000,-1167.05155577,0.00026162,2]
[426534558,1782557439000,-6440.2455893,0.00026011,2]
[426534556,1782557439000,-182.11,0.00025675,7]
[426534535,1782557439000,-1167.05155577,0.00022783,2]
[426534559,1782557439000,-7822.4322297,0.00026013,2]
[426534546,1782557439000,-184.98,0.00024658,2]
[426534532,1782557439000,-201.0,0.00022594,10]
[426534506,1782557439000,-6881.3001472,0.000203,2]
[426534529,1782557439000,-151.0,0.00022,2]
[426534563,1782557439000,-58991.1387826,0.00026718,2]
[426534509,1782557439000,-388.224,0.000205,2]
[426534508,1782557439000,-6881.3001472,0.000205,2]
[426534507,1782557439000,-388.224,0.000203,2]
[426534510,1782557439000,-6881.3001472,0.000207,2]
[426534511,1782557439000,-388.224,0.000207,2]
[426534522,1782557439000,-567.72156695,0.00021868,7]
[426534512,1782557439000,-1081.0,0.00020875,5]
[426534513,1782557439000,-916.0,0.00020875,5]
[426534523,1782557439000,-768.141,0.00021868,7]
[426534524,1782557439000,-163.87454717,0.000219,2]
[426534516,1782557439000,-6881.3001472,0.000211,2]
[426534537,1782557439000,-213.85986535,0.00024273,2]
[426534515,1782557439000,-388.224,0.000209,2]
[426534514,1782557439000,-6881.3001472,0.000209,2]
[426534518,1782557439000,-1147.29558449,0.000214,2]
[426534521,1782557439000,-6881.3001472,0.000218,2]
[426534520,1782557439000,-6881.3001472,0.000215,2]
[426534519,1782557439000,-151.0,0.00021497,2]
[426534527,1782557439000,-151.0,0.00022,2]
[426534525,1782557439000,-5000.0,0.00021918,2]
[426534526,1782557439000,-6881.3001472,0.00022,2]
[426534530,1782557439000,-10495.06341151,0.00022056,2]
[426534533,1782557439000,-455.74213965,0.00022728,2]
[426534528,1782557439000,-151.0,0.00022,2]
[426534534,1782557439000,-464.2293233,0.00022753,2]
[426534517,1782557439000,-6881.3001472,0.000213,2]
[426534562,1782557439000,-151.0,0.00026718,2]
[426534617,1782557439000,-11314.31526463,0.000301,7]
[426534577,1782557439000,-12067.80840474,0.00027534,2]
[426534598,1782557439000,-1167.05155577,0.00029541,2]
[426534600,1782557439000,-158.25,0.00029815,2]
[426534597,1782557439000,-1668.91249029,0.00029123,2]
[426534599,1782557439000,-13162.7022439,0.00029714,2]
[426534602,1782557439000,-299.99,0.00029815,12]
[426534601,1782557439000,-925.07,0.00029815,2]
[426534604,1782557439000,-999.99,0.00029815,2]
[426534607,1782557439000,-10000.0,0.0003,2]
[426534606,1782557439000,-4828.71,0.00029815,2]
[426534605,1782557439000,-1585.57,0.00029815,2]
[426534608,1782557439000,-189.94,0.0003,7]
[426534610,1782557439000,-151.0,0.0003008,7]
[426534594,1782557439000,-10495.06341151,0.00029114,2]
[426534613,1782557439000,-214.96618774,0.0003009,2]
[426534615,1782557439000,-1072.57038613,0.00030099,15]
[426534612,1782557439000,-151.0,0.0003008,7]
[426534611,1782557439000,-151.0,0.0003008,7]
[426534616,1782557439000,-372546.54502163,0.000301,7]
[426534609,1782557439000,-10281.0,0.0003008,20]
[426534618,1782557439000,-1148.53642385,0.000301,7]
[426534624,1782557439000,-272.24010028,0.00027397,10]
[426534619,1782557439000,-1517.12268375,0.000301,7]
[426534620,1782557439000,-5470.49500095,0.000301,7]
[426534621,1782557439000,-18126.1,0.000301,7]
[426534622,1782557439000,-1317.9999,0.00027397,10]
[426534566,1782557439000,-150.0,0.00026849,2]
[426534614,1782557439000,-151.0,0.00030097,7]
[426534596,1782557439000,-10281.0,0.0002912,20]
[426534623,1782557439000,-483.92578984,0.00027397,10]
[426534603,1782557439000,-150.99,0.00029815,2]
[426534570,1782557439000,-163.94400651,0.00026849,2]
[426534576,1782557439000,-500.0,0.000275,7]
[426534569,1782557439000,-150.0,0.00026849,2]
[426534572,1782557439000,-156.5815,0.00027397,2]
[426534575,1782557439000,-3070.58,0.00027397,10]
[426534573,1782557439000,-1932.26,0.00027397,10]
[426534568,1782557439000,-150.0,0.00026849,2]
[426534571,1782557439000,-190.0,0.000273,15]
[426534565,1782557439000,-150.30499325,0.00026849,2]
[426534567,1782557439000,-150.0,0.00026849,2]
[426534578,1782557439000,-12067.80840474,0.00028055,2]
[426534580,1782557439000,-150.20048578,0.00028344,20]
[426534574,1782557439000,-3684.69,0.00027397,10]
[426534590,1782557439000,-488.9071658,0.00028929,2]
[426534589,1782557439000,-1745.4205561,0.00028929,2]
[426534593,1782557439000,-165.5,0.00029,2]
[426534584,1782557439000,-1668.91249029,0.00028809,2]
[426534585,1782557439000,-974.6711902,0.00028868,2]
[426534591,1782557439000,-1668.91249029,0.00028973,2]
[426534588,1782557439000,-1437.0130297,0.00028927,2]
[426534592,1782557439000,-9099.94406364,0.00028996,7]
[426534595,1782557439000,-158.0,0.0002912,5]
[426534587,1782557439000,-1147.29558448,0.000289,2]
[426534582,1782557439000,-151.0,0.00028663,7]
[426534581,1782557439000,-7033.85,0.00028364,7]
[426534579,1782557439000,-189.94,0.000281,7]
[426534583,1782557439000,-12067.80840474,0.00028666,2]
[426534626,1782557440000,-505.30379518,0.000301,7]
[426534625,1782557440000,-484.64420988,0.00027397,10]
[426534627,1782557440000,-807649.70581355,0.000301,7]
[426534632,1782557440000,-15879.28110786,0.000301,7]
[426534630,1782557440000,-2198.45264352,0.000301,7]
[426534629,1782557440000,-151.0,0.00025,2]
[426534631,1782557440000,-597.45459186,0.000301,7]
[426534628,1782557440000,-2818.360003,0.000301,7]
[426534638,1782557442000,-221.65,0.000301,7]
[426534636,1782557442000,-181.35,0.00024658,2]
[426534637,1782557442000,-151.0,0.0003009,2]
[426534644,1782557445000,-11043.26388411,0.000301,7]
[426534645,1782557445000,-1607.15458847,0.000301,7]
[426534647,1782557445000,-9695.86784737,0.000301,7]
[426534646,1782557445000,-18153.85960751,0.000301,7]
[426534649,1782557446000,-535.73686842,0.000301,7]
[426534648,1782557446000,-1284.5543,0.000301,7]
[426534685,1782557678000,4270.36302653,8e-05,2]
[426534684,1782557678000,425.18413946,8e-05,2]
[426534687,1782557792000,500.0,0.00037425,120]
[426534690,1782558014000,204.006559,0.0002352,120]
[426534694,1782558035000,261.0,0.00037409,120]
[426534693,1782558035000,151.0,0.00037409,120]
[426534696,1782558037000,151.0,0.00037409,120]
[426534695,1782558037000,151.0,0.00037409,120]
[426534697,1782558038000,151.0,0.00037409,120]
[426534698,1782558128000,156.5815,0.00037409,120]
[426534700,1782558528000,324.04,9.919e-05,2]
[426534701,1782558550000,199.0,0.0002,120]
[426534707,1782558610000,-292.22024843,0.0001018,2]
[426534729,1782558631000,-10661.61,0.00011481,2]
[426534730,1782558631000,-1000.0,0.00011481,2]
[426534727,1782558631000,-1171.17913528,0.00011462,2]
[426534720,1782558631000,-263.92833634,0.00011198,2]
[426534725,1782558631000,-443.79390442,0.00011462,2]
[426534728,1782558631000,-1584.6435,0.00011462,2]
[426534726,1782558631000,-782.90505197,0.00011462,2]
[426534722,1782558631000,-166.66,0.00011401,2]
[426534718,1782558631000,-166.66,0.00011166,2]
[426534723,1782558631000,-328.10987428,0.00011421,2]
[426534712,1782558631000,-682.54734299,0.000108,2]
[426534738,1782558631000,-921.46,0.00011758,2]
[426534721,1782558631000,-160.95311594,0.00011364,2]
[426534724,1782558631000,-227.34220432,0.00011421,2]
[426534716,1782558631000,-345.40304272,0.00011049,2]
[426534717,1782558631000,-330.47,0.0001112,2]
[426534715,1782558631000,-330.47,0.00010991,2]
[426534713,1782558631000,-168.16644326,0.00010962,2]
[426534714,1782558631000,-324.04,0.00010964,2]
[426534710,1782558631000,-31.81975157,0.0001018,2]
[426534711,1782558631000,-317.66,0.00010441,2]
[426534719,1782558631000,-500.0,0.00011198,2]
[426534735,1782558631000,-1166.93,0.00011638,2]
[426534747,1782558631000,-152.0,0.00012087,2]
[426534732,1782558631000,-330.47,0.00011505,2]
[426534736,1782558631000,-160.95311594,0.00011699,2]
[426534762,1782558631000,-151.0,0.00012159,2]
[426534760,1782558631000,-151.0,0.00012159,2]
[426534758,1782558631000,-151.0,0.00012159,2]
[426534757,1782558631000,-152.0,0.00012148,2]
[426534751,1782558631000,-151.0,0.00012087,2]
[426534753,1782558631000,-151.0,0.00012087,2]
[426534744,1782558631000,-151.0,0.00012087,2]
[426534748,1782558631000,-151.0,0.00012087,2]
[426534755,1782558631000,-166.66,0.00012106,2]
[426534749,1782558631000,-152.0,0.00012087,2]
[426534743,1782558631000,-150.0,0.00012086,2]
[426534746,1782558631000,-150.0,0.00012087,2]
[426534742,1782558631000,-160.95311594,0.00012026,2]
[426534737,1782558631000,-160.95311594,0.00011699,2]
[426534740,1782558631000,-160.95311595,0.00012026,2]
[426534734,1782558631000,-166.66,0.00011636,2]
[426534739,1782558631000,-166.66,0.00011871,2]
[426534741,1782558631000,-160.95311594,0.00012026,2]
[426534733,1782558631000,-317.66,0.00011541,2]
[426534745,1782558631000,-239.81642095,0.00012087,2]
[426534731,1782558631000,-292.58,0.00011504,2]
[426534805,1782558632000,-1155.58666498,0.00012868,2]
[426534806,1782558632000,-1178.00238394,0.00012868,2]
[426534804,1782558632000,-5826.41327979,0.00012868,2]
[426534802,1782558632000,-167.94,0.00012687,2]
[426534813,1782558632000,-160.95311595,0.00013453,2]
[426534791,1782558632000,-160.95311595,0.00012581,2]
[426534800,1782558632000,-151.0,0.00012645,2]
[426534801,1782558632000,-150.0,0.00012645,2]
[426534799,1782558632000,-300.0,0.00012645,2]
[426534798,1782558632000,-151.0,0.00012645,2]
[426534809,1782558632000,-255.0,0.00013174,2]
[426534803,1782558632000,-500.0,0.00012831,2]
[426534810,1782558632000,-216.51184279,0.00013176,2]
[426534826,1782558632000,-152.0,0.0001352,2]
[426534811,1782558632000,-160.0,0.00013176,2]
[426534808,1782558632000,-577.52044771,0.00012987,2]
[426534812,1782558632000,-921.46,0.00013228,2]
[426534814,1782558632000,-160.95311595,0.00013461,2]
[426534820,1782558632000,-152.0,0.0001352,2]
[426534818,1782558632000,-150.0,0.00013463,2]
[426534816,1782558632000,-150.0,0.00013463,2]
[426534815,1782558632000,-150.0,0.00013463,2]
[426534825,1782558632000,-171.85027899,0.0001352,2]
[426534793,1782558632000,-150.0,0.00012644,2]
[426534819,1782558632000,-5800.0,0.0001352,2]
[426534824,1782558632000,-152.0,0.0001352,2]
[426534821,1782558632000,-152.0,0.0001352,2]
[426534807,1782558632000,-160.0,0.00012986,2]
[426534796,1782558632000,-151.0,0.00012644,2]
[426534781,1782558632000,-151.0,0.00012365,2]
[426534789,1782558632000,-151.0,0.0001258,2]
[426534817,1782558632000,-150.0,0.00013463,2]
[426534771,1782558632000,-150.0,0.00012283,2]
[426534770,1782558632000,-151.0,0.00012283,2]
[426534774,1782558632000,-151.0,0.00012283,2]
[426534772,1782558632000,-150.0,0.00012283,2]
[426534773,1782558632000,-150.0,0.00012283,2]
[426534769,1782558632000,-150.0,0.00012221,2]
[426534765,1782558632000,-152.0,0.00012221,2]
[426534768,1782558632000,-152.0,0.00012221,2]
[426534763,1782558632000,-150.0,0.00012159,2]
[426534767,1782558632000,-151.0,0.00012221,2]
[426534775,1782558632000,-500.0,0.00012283,2]
[426534785,1782558632000,-500.0,0.00012557,2]
[426534795,1782558632000,-151.0,0.00012644,2]
[426534778,1782558632000,-166.66,0.00012341,2]
[426534776,1782558632000,-634.09,0.000123,2]
[426534779,1782558632000,-151.0,0.00012346,2]
[426534786,1782558632000,-150.16307876,0.0001258,2]
[426534780,1782558632000,-150.0,0.0001235,2]
[426534782,1782558632000,-150.0,0.00012369,2]
[426534783,1782558632000,-152.0,0.00012428,2]
[426534784,1782558632000,-151.0,0.00012517,2]
[426534787,1782558632000,-153.0,0.0001258,2]
[426534788,1782558632000,-151.0,0.0001258,2]
[426534794,1782558632000,-150.0,0.00012644,2]
[426534792,1782558632000,-160.95311593,0.00012581,2]
[426534797,1782558632000,-152.0,0.00012644,2]
[426534790,1782558632000,-151.0,0.0001258,2]
[426534777,1782558632000,-160.79,0.00012301,2]
[426534822,1782558632000,-152.0,0.0001352,2]
[426534849,1782558632000,-500.0,0.00013597,2]
[426534827,1782558632000,-152.0,0.0001352,2]
[426534861,1782558632000,-500.0,0.00013597,2]
[426534856,1782558632000,-500.0,0.00013597,2]
[426534862,1782558632000,-609.62201869,0.00013597,2]
[426534865,1782558632000,-609.62201869,0.00013597,2]
[426534863,1782558632000,-609.62201869,0.00013597,2]
[426534873,1782558632000,-609.62201869,0.00013597,2]
[426534871,1782558632000,-609.62201869,0.00013597,2]
[426534870,1782558632000,-609.62201869,0.00013597,2]
[426534866,1782558632000,-609.62201869,0.00013597,2]
[426534864,1782558632000,-500.0,0.00013597,2]
[426534872,1782558632000,-609.62201869,0.00013597,2]
[426534869,1782558632000,-609.62201869,0.00013597,2]
[426534867,1782558632000,-553.49550184,0.00013597,2]
[426534868,1782558632000,-609.62201869,0.00013597,2]
[426534875,1782558632000,-609.62201869,0.00013597,2]
[426534880,1782558632000,-609.62201869,0.00013597,2]
[426534881,1782558632000,-609.62201869,0.00013597,2]
[426534877,1782558632000,-609.62201869,0.00013597,2]
[426534878,1782558632000,-609.62201869,0.00013597,2]
[426534879,1782558632000,-609.62201869,0.00013597,2]
[426534883,1782558632000,-609.62201869,0.00013597,2]
[426534882,1782558632000,-609.62201869,0.00013597,2]
[426534884,1782558632000,-609.62201869,0.00013597,2]
[426534885,1782558632000,-609.62201869,0.00013597,2]
[426534876,1782558632000,-609.62201869,0.00013597,2]
[426534886,1782558632000,-609.62201869,0.00013597,2]
[426534823,1782558632000,-152.0,0.0001352,2]
[426534857,1782558632000,-609.62201869,0.00013597,2]
[426534860,1782558632000,-197.28852065,0.00013597,2]
[426534874,1782558632000,-609.62201869,0.00013597,2]
[426534858,1782558632000,-500.0,0.00013597,2]
[426534859,1782558632000,-609.62201869,0.00013597,2]
[426534831,1782558632000,-152.0,0.0001352,2]
[426534830,1782558632000,-152.0,0.0001352,2]
[426534829,1782558632000,-272.61515515,0.0001352,2]
[426534828,1782558632000,-152.0,0.0001352,2]
[426534832,1782558632000,-152.0,0.0001352,2]
[426534833,1782558632000,-232.0,0.0001352,2]
[426534836,1782558632000,-152.0,0.00013529,2]
[426534837,1782558632000,-248.4178774,0.00013529,2]
[426534835,1782558632000,-152.0,0.00013529,2]
[426534838,1782558632000,-5800.0,0.00013537,2]
[426534840,1782558632000,-192.0,0.00013537,2]
[426534843,1782558632000,-511.28190818,0.00013545,2]
[426534842,1782558632000,-292.0,0.00013537,2]
[426534834,1782558632000,-5800.0,0.00013529,2]
[426534850,1782558632000,-500.0,0.00013597,2]
[426534887,1782558632000,-609.62201869,0.00013597,2]
[426534846,1782558632000,-183.06196734,0.00013597,2]
[426534844,1782558632000,-2240.84477466,0.00013575,2]
[426534847,1782558632000,-207.78040441,0.00013597,2]
[426534845,1782558632000,-482.09353528,0.00013588,2]
[426534848,1782558632000,-500.0,0.00013597,2]
[426534839,1782558632000,-152.0,0.00013537,2]
[426534851,1782558632000,-500.0,0.00013597,2]
[426534853,1782558632000,-395.48368224,0.00013597,2]
[426534852,1782558632000,-460.19953643,0.00013597,2]
[426534855,1782558632000,-626.57399898,0.00013597,2]
[426534841,1782558632000,-152.0,0.00013537,2]
[426534854,1782558632000,-279.82561576,0.00013597,2]
[426534910,1782558633000,-609.62201869,0.00013597,2]
[426534906,1782558633000,-609.62201869,0.00013597,2]
[426534919,1782558633000,-831.24732943,0.00013597,2]
[426534918,1782558633000,-831.24732943,0.00013597,2]
[426534907,1782558633000,-609.62201869,0.00013597,2]
[426534908,1782558633000,-609.62201869,0.00013597,2]
[426534912,1782558633000,-609.62201869,0.00013597,2]
[426534921,1782558633000,-717.64546025,0.00013597,2]
[426534911,1782558633000,-609.62201869,0.00013597,2]
[426534916,1782558633000,-609.62201869,0.00013597,2]
[426534915,1782558633000,-609.62201869,0.00013597,2]
[426534917,1782558633000,-609.62201869,0.00013597,2]
[426534913,1782558633000,-609.62201869,0.00013597,2]
[426534899,1782558633000,-609.62201869,0.00013597,2]
[426534914,1782558633000,-609.62201869,0.00013597,2]
[426534904,1782558633000,-609.62201869,0.00013597,2]
[426534892,1782558633000,-609.62201869,0.00013597,2]
[426534901,1782558633000,-609.62201869,0.00013597,2]
[426534920,1782558633000,-831.24732943,0.00013597,2]
[426534888,1782558633000,-609.62201869,0.00013597,2]
[426534889,1782558633000,-609.62201869,0.00013597,2]
[426534894,1782558633000,-609.62201869,0.00013597,2]
[426534895,1782558633000,-609.62201869,0.00013597,2]
[426534897,1782558633000,-609.62201869,0.00013597,2]
[426534891,1782558633000,-609.62201869,0.00013597,2]
[426534890,1782558633000,-609.62201869,0.00013597,2]
[426534896,1782558633000,-609.62201869,0.00013597,2]
[426534893,1782558633000,-609.62201869,0.00013597,2]
[426534898,1782558633000,-609.62201869,0.00013597,2]
[426534900,1782558633000,-609.62201869,0.00013597,2]
[426534909,1782558633000,-609.62201869,0.00013597,2]
[426534905,1782558633000,-609.62201869,0.00013597,2]
[426534903,1782558633000,-609.62201869,0.00013597,2]
[426534902,1782558633000,-609.62201869,0.00013597,2]
[426534922,1782558633000,-113.60186918,0.00013597,2]
[426534923,1782558633000,-831.24732943,0.00013597,2]
[426534926,1782558633000,-831.24732943,0.00013597,2]
[426534940,1782558633000,-831.24732943,0.00013597,2]
[426534945,1782558633000,-831.24732943,0.00013597,2]
[426534947,1782558633000,-831.24732943,0.00013597,2]
[426534955,1782558633000,-19503.37902511,0.00013598,2]
[426534948,1782558633000,-831.24732941,0.00013597,2]
[426534946,1782558633000,-831.24732943,0.00013597,2]
[426534951,1782558633000,-166.0,0.00013598,2]
[426534949,1782558633000,-831.24732941,0.00013597,2]
[426534952,1782558633000,-1364.4005627,0.00013598,2]
[426534954,1782558633000,-102421.93438787,0.00013598,2]
[426534950,1782558633000,-831.24732941,0.00013597,2]
[426534956,1782558633000,-129945.48423926,0.00013598,2]
[426534957,1782558633000,-1254.41808677,0.00013598,2]
[426534958,1782558633000,-1123.75610692,0.00013598,2]
[426534924,1782558633000,-831.24732943,0.00013597,2]
[426534942,1782558633000,-831.24732943,0.00013597,2]
[426534943,1782558633000,-831.24732943,0.00013597,2]
[426534953,1782558633000,-1203388.30709955,0.00013598,2]
[426534938,1782558633000,-831.24732943,0.00013597,2]
[426534927,1782558633000,-831.24732943,0.00013597,2]
[426534929,1782558633000,-831.24732943,0.00013597,2]
[426534928,1782558633000,-831.24732943,0.00013597,2]
[426534937,1782558633000,-831.24732943,0.00013597,2]
[426534931,1782558633000,-831.24732943,0.00013597,2]
[426534930,1782558633000,-831.24732943,0.00013597,2]
[426534932,1782558633000,-831.24732943,0.00013597,2]
[426534925,1782558633000,-831.24732943,0.00013597,2]
[426534934,1782558633000,-831.24732943,0.00013597,2]
[426534935,1782558633000,-831.24732943,0.00013597,2]
[426534936,1782558633000,-831.24732943,0.00013597,2]
[426534941,1782558633000,-831.24732943,0.00013597,2]
[426534939,1782558633000,-831.24732943,0.00013597,2]
[426534933,1782558633000,-831.24732943,0.00013597,2]
[426534944,1782558633000,-831.24732943,0.00013597,2]
[426534989,1782558637000,-1148.53642385,0.00013598,2]
[426534988,1782558637000,-9410.86526463,0.00013598,2]
[426534990,1782558637000,-4491.1630406,0.00013598,2]
[426534987,1782558637000,-1903.45,0.00011509,2]
[426535029,1782558638000,-10501.97062091,0.0001439,2]
[426535022,1782558638000,-2240.84477464,0.00014332,2]
[426535021,1782558638000,-3192.2912,0.000143,2]
[426535012,1782558638000,-2240.84477464,0.00013764,2]
[426535028,1782558638000,-433.0,0.00014358,2]
[426535014,1782558638000,-2240.84477464,0.00013954,2]
[426535030,1782558638000,-1243.05226601,0.000144,2]
[426535015,1782558638000,-250.0,0.00014,2]
[426535025,1782558638000,-178.31452088,0.00014356,2]
[426535020,1782558638000,-2139.2999,0.0001429,2]
[426535045,1782558638000,-500.0,0.00014444,2]
[426535026,1782558638000,-1842.05934325,0.00014356,2]
[426535032,1782558638000,-500.0,0.00014444,2]
[426535027,1782558638000,-176.38123637,0.00014356,2]
[426535031,1782558638000,-500.0,0.00014444,2]
[426535038,1782558638000,-500.0,0.00014444,2]
[426535034,1782558638000,-500.0,0.00014444,2]
[426535035,1782558638000,-500.0,0.00014444,2]
[426535037,1782558638000,-500.0,0.00014444,2]
[426535036,1782558638000,-500.0,0.00014444,2]
[426535013,1782558638000,-160.79,0.00013839,2]
[426535024,1782558638000,-2500.0,0.00014344,2]
[426535017,1782558638000,-264.913766,0.00014156,2]
[426535002,1782558638000,-500.0,0.00013698,2]
[426535016,1782558638000,-2240.84477464,0.00014143,2]
[426535041,1782558638000,-500.0,0.00014444,2]
[426534991,1782558638000,-27312.15632544,0.00013598,2]
[426534993,1782558638000,-500.0,0.00013698,2]
[426534992,1782558638000,-500.0,0.00013698,2]
[426534994,1782558638000,-500.0,0.00013698,2]
[426535003,1782558638000,-500.0,0.00013698,2]
[426535005,1782558638000,-500.0,0.00013698,2]
[426534999,1782558638000,-500.0,0.00013698,2]
[426534996,1782558638000,-500.0,0.00013698,2]
[426535000,1782558638000,-500.0,0.00013698,2]
[426534998,1782558638000,-500.0,0.00013698,2]
[426534997,1782558638000,-500.0,0.00013698,2]
[426535006,1782558638000,-500.0,0.00013698,2]
[426535004,1782558638000,-500.0,0.00013698,2]
[426535001,1782558638000,-500.0,0.00013698,2]
[426535010,1782558638000,-1411.51,0.00013699,2]
[426535008,1782558638000,-500.0,0.00013698,2]
[426535007,1782558638000,-500.0,0.00013698,2]
[426535018,1782558638000,-511.28190816,0.00014223,2]
[426535019,1782558638000,-20026.4328,0.0001429,2]
[426535009,1782558638000,-248.16631107,0.00013698,2]
[426535011,1782558638000,-200.0,0.00013699,2]
[426535033,1782558638000,-500.0,0.00014444,2]
[426534995,1782558638000,-500.0,0.00013698,2]
[426535044,1782558638000,-500.0,0.00014444,2]
[426535070,1782558638000,-500.0,0.00014444,2]
[426535073,1782558638000,-500.0,0.00014444,2]
[426535072,1782558638000,-500.0,0.00014444,2]
[426535074,1782558638000,-500.0,0.00014444,2]
[426535076,1782558638000,-500.0,0.00014444,2]
[426535075,1782558638000,-501.45512008,0.00014444,2]
[426535077,1782558638000,-526.06294901,0.00014444,2]
[426535071,1782558638000,-500.0,0.00014444,2]
[426535079,1782558638000,-500.0,0.00014444,2]
[426535080,1782558638000,-500.0,0.00014444,2]
[426535065,1782558638000,-500.0,0.00014444,2]
[426535078,1782558638000,-500.0,0.00014444,2]
[426535083,1782558638000,-500.0,0.00014444,2]
[426535088,1782558638000,-500.0,0.00014444,2]
[426535085,1782558638000,-500.0,0.00014444,2]
[426535090,1782558638000,-500.0,0.00014444,2]
[426535084,1782558638000,-500.0,0.00014444,2]
[426535087,1782558638000,-500.0,0.00014444,2]
[426535091,1782558638000,-500.0,0.00014444,2]
[426535086,1782558638000,-500.0,0.00014444,2]
[426535089,1782558638000,-500.0,0.00014444,2]
[426535039,1782558638000,-500.0,0.00014444,2]
[426535081,1782558638000,-500.0,0.00014444,2]
[426535067,1782558638000,-500.0,0.00014444,2]
[426535082,1782558638000,-500.0,0.00014444,2]
[426535064,1782558638000,-500.0,0.00014444,2]
[426535043,1782558638000,-500.0,0.00014444,2]
[426535062,1782558638000,-500.0,0.00014444,2]
[426535042,1782558638000,-500.0,0.00014444,2]
[426535047,1782558638000,-505.40601264,0.00014444,2]
[426535057,1782558638000,-500.0,0.00014444,2]
[426535048,1782558638000,-500.0,0.00014444,2]
[426535046,1782558638000,-169.10387934,0.00014444,2]
[426535052,1782558638000,-500.0,0.00014444,2]
[426535054,1782558638000,-500.0,0.00014444,2]
[426535053,1782558638000,-500.0,0.00014444,2]
[426535051,1782558638000,-500.0,0.00014444,2]
[426535049,1782558638000,-325.62330576,0.00014444,2]
[426535050,1782558638000,-500.0,0.00014444,2]
[426535055,1782558638000,-500.0,0.00014444,2]
[426535069,1782558638000,-500.0,0.00014444,2]
[426535059,1782558638000,-500.0,0.00014444,2]
[426535058,1782558638000,-500.0,0.00014444,2]
[426535060,1782558638000,-500.0,0.00014444,2]
[426535063,1782558638000,-500.0,0.00014444,2]
[426535061,1782558638000,-500.0,0.00014444,2]